fUSD/lending_fUSD_20250124
["ID","MTS","AMOUNT","RATE_DAILY","PERIOD"]
[350257276,1737742238212,-150.0,0.00019624,2]
[350257277,1737742238222,-1119.34054529,0.00019631,2]
[350257278,1737742238231,-150.0,0.00019645,2]
[350257279,1737742238241,-1000.0,0.00019662,2]
[350257280,1737742238253,-366.0,0.000197,2]
[350257281,1737742238263,-204.82,0.00019701,2]
[350257282,1737742238273,-551.446764,0.00019708,2]
[350257284,1737742238282,-500.0,0.00019708,2]
[350257285,1737742238291,-323.877966,0.00019708,2]
[350257286,1737742238300,-542.76249298,0.00019708,2]
[350257287,1737742238309,-500.0,0.00019708,2]
[350257288,1737742238319,-500.0,0.00019708,2]
[350257289,1737742238328,-510.62,0.00019708,2]
[350257290,1737742238337,-500.0,0.00019708,2]
[350257291,1737742238346,-500.0,0.00019708,2]
[350257292,1737742238355,-593.21,0.00019708,2]
[350257293,1737742238364,-500.0,0.00019708,2]
[350257294,1737742238373,-715.52,0.00019708,2]
[350257295,1737742238383,-500.0,0.00019708,2]
[350257296,1737742238392,-1100.14,0.00019708,2]
[350257297,1737742238401,-815.3,0.00019708,2]
[350257298,1737742238410,-1804.26,0.00019708,2]
[350257299,1737742238420,-500.0,0.00019708,2]
[350257300,1737742238429,-500.0,0.00019708,2]
[350257301,1737742238441,-500.0,0.00019708,2]
[350257302,1737742238453,-533.51,0.00019708,2]
[350257303,1737742238462,-500.0,0.00019708,2]
[350257304,1737742238471,-500.0,0.00019708,2]
[350257305,1737742238482,-500.0,0.00019708,2]
[350257306,1737742238492,-500.0,0.00019708,2]
[350257307,1737742238502,-933.88,0.00019708,2]
[350257308,1737742238520,-537.82,0.00019708,2]
[350257309,1737742238529,-323.03,0.00019708,2]
[350257310,1737742238538,-500.0,0.00019708,2]
[350257311,1737742238549,-879.83,0.00019708,2]
[350257312,1737742238559,-500.0,0.00019708,2]
[350257313,1737742238568,-500.0,0.00019708,2]
[350257314,1737742238578,-500.0,0.00019708,2]
[350257315,1737742238587,-500.0,0.00019708,2]
[350257316,1737742238596,-500.0,0.00019708,2]
[350257317,1737742238606,-599.9,0.00019708,2]
[350257318,1737742238615,-813.69,0.00019708,2]
[350257319,1737742238625,-500.0,0.00019708,2]
[350257320,1737742238634,-647.13,0.00019708,2]
[350257321,1737742238643,-1090.78,0.00019708,2]
[350257322,1737742238653,-500.0,0.00019708,2]
[350257323,1737742238662,-500.0,0.00019708,2]
[350257324,1737742238671,-500.0,0.00019708,2]
[350257325,1737742238681,-500.0,0.00019708,2]
[350257326,1737742238692,-500.0,0.00019708,2]
[350257327,1737742238701,-500.0,0.00019708,2]
[350257328,1737742238711,-500.0,0.00019708,2]
[350257329,1737742238720,-500.0,0.00019708,2]
[350257330,1737742238730,-500.0,0.00019708,2]
[350257331,1737742238739,-500.0,0.00019708,2]
[350257332,1737742238749,-500.0,0.00019708,2]
[350257333,1737742238759,-540.92,0.00019708,2]
[350257334,1737742238769,-500.0,0.00019708,2]
[350257335,1737742238778,-500.0,0.00019708,2]
[350257336,1737742238787,-525.42,0.00019708,2]
[350257337,1737742238797,-500.0,0.00019708,2]
[350257338,1737742238806,-500.0,0.00019708,2]
[350257339,1737742238816,-500.0,0.00019709,2]
[350257340,1737742238825,-500.0,0.00019709,2]
[350257341,1737742238835,-594.44214623,0.00019709,2]
[350257342,1737742238844,-500.0,0.00019709,2]
[350257343,1737742238853,-500.0,0.00019709,2]
[350257344,1737742238863,-500.0,0.00019709,2]
[350257345,1737742238872,-500.0,0.00019709,2]
[350257346,1737742238882,-500.0,0.00019709,2]
[350257347,1737742238892,-500.0,0.00019709,2]
[350257348,1737742238901,-500.0,0.00019709,2]
[350257349,1737742238911,-500.0,0.00019709,2]
[350257350,1737742238921,-500.0,0.00019709,2]
[350257351,1737742238931,-500.0,0.00019709,2]
[350257352,1737742238942,-500.0,0.00019709,2]
[350257353,1737742238954,-500.0,0.00019709,2]
[350257354,1737742238964,-500.0,0.00019709,2]
[350257355,1737742238973,-500.0,0.00019709,2]
[350257356,1737742238982,-500.0,0.00019709,2]
[350257357,1737742238992,-500.0,0.00019709,2]
[350257358,1737742239001,-500.0,0.00019709,2]
[350257359,1737742239012,-500.0,0.00019709,2]
[350257360,1737742239021,-500.0,0.00019709,2]
[350257361,1737742239031,-500.0,0.00019709,2]
[350257362,1737742239040,-103.66417364,0.00019709,2]
[350257363,1737742239053,-396.33582636,0.00019709,2]
[350257364,1737742239062,-500.0,0.00019709,2]
[350257365,1737742239071,-500.0,0.00019709,2]
[350257366,1737742239080,-500.0,0.00019709,2]
[350257367,1737742239089,-500.0,0.00019709,2]
[350257368,1737742239098,-500.0,0.00019709,2]
[350257369,1737742239107,-500.0,0.00019709,2]
[350257370,1737742239116,-500.0,0.00019709,2]
[350257371,1737742239125,-500.0,0.00019709,2]
[350257372,1737742239135,-500.0,0.00019709,2]
[350257373,1737742239145,-500.0,0.00019709,2]
[350257374,1737742239155,-500.0,0.00019709,2]
[350257375,1737742239164,-500.0,0.00019709,2]
[350257376,1737742239175,-250.59012825,0.00019709,2]
[350257377,1737742239187,-500.0,0.00019709,2]
[350257378,1737742239196,-500.0,0.00019709,2]
[350257379,1737742239206,-669.3,0.00019709,2]
[350257380,1737742239217,-74.19233478,0.00019709,2]
[350257381,1737742239234,-425.80766522,0.00019709,2]
[350257382,1737742239243,-500.0,0.00019709,2]
[350257383,1737742239255,-500.0,0.00019709,2]
[350257384,1737742239264,-1073.48,0.00019709,2]
[350257385,1737742239274,-500.0,0.00019709,2]
[350257386,1737742239283,-564.3,0.00019709,2]
[350257387,1737742239293,-500.0,0.00019709,2]
[350257388,1737742239302,-500.0,0.00019709,2]
[350257389,1737742239311,-500.0,0.00019709,2]
[350257390,1737742239321,-500.0,0.00019709,2]
[350257391,1737742239330,-500.0,0.00019709,2]
[350257392,1737742239339,-500.0,0.00019709,2]
[350257393,1737742239348,-500.0,0.00019709,2]
[350257394,1737742239358,-500.0,0.00019709,2]
[350257395,1737742239367,-518.17,0.00019709,2]
[350257396,1737742239376,-500.0,0.00019709,2]
[350257397,1737742239386,-750.73,0.00019709,2]
[350257398,1737742239399,-500.0,0.00019709,2]
[350257399,1737742239409,-500.0,0.00019709,2]
[350257400,1737742239418,-1323.61,0.00019709,2]
[350257401,1737742239427,-500.0,0.00019709,2]
[350257402,1737742239437,-389.27284277,0.00019709,2]
[350257403,1737742239447,-506.42,0.00019709,2]
[350257404,1737742239456,-84.70949201,0.00019709,2]
[350257405,1737742239592,-415.29050799,0.00019709,2]
[350257406,1737742239603,-500.0,0.00019709,2]
[350257407,1737742239612,-500.0,0.00019709,2]
[350257408,1737742239621,-500.0,0.00019709,2]
[350257409,1737742239630,-1648.25,0.00019709,2]
[350257410,1737742239639,-500.0,0.00019709,2]
[350257411,1737742239649,-500.0,0.00019709,2]
[350257412,1737742239658,-500.0,0.00019709,2]
[350257413,1737742239668,-500.0,0.00019709,2]
[350257414,1737742239679,-500.0,0.00019709,2]
[350257415,1737742239688,-500.0,0.00019709,2]
[350257416,1737742239698,-500.0,0.00019709,2]
[350257418,1737742239708,-500.0,0.00019709,2]
[350257419,1737742239718,-594.31,0.00019709,2]
[350257420,1737742239727,-500.0,0.00019709,2]
[350257421,1737742239736,-500.0,0.00019709,2]
[350257422,1737742239745,-500.0,0.00019709,2]
[350257423,1737742239755,-282.42311975,0.00019709,2]
[350257424,1737742239767,-452.23688025,0.00019709,2]
[350257425,1737742239777,-191.42218209,0.00019709,2]
[350257426,1737742239787,-1874.94,0.00019709,2]
[350257427,1737742239796,-500.0,0.00019709,2]
[350257428,1737742239805,-500.0,0.00019709,2]
[350257429,1737742239815,-500.0,0.00019709,2]
[350257430,1737742239825,-500.0,0.00019709,2]
[350257431,1737742239835,-500.0,0.00019709,2]
[350257432,1737742239844,-500.0,0.00019709,2]
[350257433,1737742239853,-500.0,0.00019727,2]
[350257434,1737742239863,-546.65,0.00019727,2]
[350257435,1737742239873,-138.74539058,0.00019727,2]
[350257437,1737742239890,-298.99907905,0.00019727,2]
[350257439,1737742239902,-62.25553037,0.00019727,2]
[350257441,1737742239912,-500.0,0.00019727,2]
[350257443,1737742239922,-549.95527504,0.00019727,2]
[350257444,1737742239932,-501.78,0.00019727,2]
[350257445,1737742239942,-500.0,0.00019727,2]
[350257446,1737742239953,-500.0,0.00019727,2]
[350257447,1737742239963,-500.0,0.00019727,2]
[350257448,1737742239973,-500.0,0.00019727,2]
[350257449,1737742239982,-500.0,0.00019727,2]
[350257450,1737742239991,-500.0,0.00019727,2]
[350257451,1737742240001,-500.0,0.00019727,2]
[350257452,1737742240010,-500.0,0.00019727,2]
[350257453,1737742240020,-500.0,0.00019727,2]
[350257454,1737742240030,-500.0,0.00019727,2]
[350257455,1737742240040,-500.0,0.00019727,2]
[350257456,1737742240050,-500.0,0.00019727,2]
[350257457,1737742240060,-500.0,0.00019727,2]
[350257458,1737742240070,-500.0,0.00019727,2]
[350257459,1737742240212,-500.0,0.00019727,2]
[350257460,1737742240253,-465.527088,0.00019727,2]
[350257461,1737742240263,-500.0,0.00019736,2]
[350257462,1737742240273,-500.0,0.00019736,2]
[350257463,1737742240283,-500.0,0.00019736,2]
[350257464,1737742240293,-519.35,0.00019736,2]
[350257465,1737742240302,-500.0,0.00019736,2]
[350257466,1737742240312,-1000.0,0.00019736,2]
[350257467,1737742240321,-500.0,0.00019736,2]
[350257468,1737742240331,-500.0,0.00019736,2]
[350257469,1737742240341,-842.06,0.00019736,2]
[350257470,1737742240351,-500.0,0.00019736,2]
[350257471,1737742240360,-150.0,0.00019742,2]
[350257472,1737742240370,-2568.8558,0.00019747,2]
[350257473,1737742240379,-150.0,0.00019749,2]
[350257474,1737742240389,-231.85602074,0.00019789,2]
[350257475,1737742240398,-3000.0,0.000198,2]
[350257476,1737742240407,-500.0,0.00019839,2]
[350257477,1737742240417,-551.446764,0.00019845,2]
[350257478,1737742240427,-500.0,0.00019845,2]
[350257479,1737742240437,-323.877966,0.00019845,2]
[350257480,1737742240446,-500.0,0.00019845,2]
[350257481,1737742240456,-500.0,0.00019845,2]
[350257482,1737742240465,-510.62,0.00019845,2]
[350257483,1737742240474,-500.0,0.00019845,2]
[350257484,1737742240483,-500.0,0.00019845,2]
[350257485,1737742240493,-593.21,0.00019845,2]
[350257486,1737742240502,-500.0,0.00019845,2]
[350257487,1737742240512,-715.52,0.00019845,2]
[350257488,1737742240521,-500.0,0.00019845,2]
[350257489,1737742240531,-1100.14,0.00019845,2]
[350257490,1737742240540,-815.3,0.00019845,2]
[350257491,1737742240549,-1804.26,0.00019845,2]
[350257492,1737742240558,-500.0,0.00019845,2]
[350257493,1737742240568,-500.0,0.00019845,2]
[350257494,1737742240577,-500.0,0.00019845,2]
[350257495,1737742240586,-500.0,0.00019845,2]
[350257496,1737742240595,-500.0,0.00019845,2]
[350257497,1737742240605,-500.0,0.00019845,2]
[350257498,1737742240615,-933.88,0.00019845,2]
[350257499,1737742240625,-537.82,0.00019845,2]
[350257500,1737742240634,-500.0,0.00019845,2]
[350257501,1737742240644,-481.30224532,0.00019845,2]
[350257502,1737742240656,-398.52775468,0.00019845,2]
[350257503,1737742240667,-145.48419456,0.00019845,2]
[350257504,1737742240679,-354.51580544,0.00019845,2]
[350257505,1737742240689,-500.0,0.00019845,2]
[350257506,1737742240700,-500.0,0.00019845,2]
[350257507,1737742240710,-500.0,0.00019845,2]
[350257508,1737742240721,-500.0,0.00019845,2]
[350257509,1737742240730,-599.9,0.00019845,2]
[350257510,1737742240740,-813.69,0.00019845,2]
[350257511,1737742240751,-500.0,0.00019845,2]
[350257512,1737742240760,-1090.78,0.00019845,2]
[350257513,1737742240770,-500.0,0.00019845,2]
[350257514,1737742240780,-500.0,0.00019845,2]
[350257515,1737742240789,-500.0,0.00019845,2]
[350257516,1737742240798,-500.0,0.00019845,2]
[350257517,1737742240808,-500.0,0.00019845,2]
[350257518,1737742240817,-500.0,0.00019845,2]
[350257519,1737742240826,-500.0,0.00019845,2]
[350257520,1737742240836,-500.0,0.00019845,2]
[350257521,1737742240846,-500.0,0.00019845,2]
[350257522,1737742240856,-500.0,0.00019845,2]
[350257523,1737742240865,-540.92,0.00019845,2]
[350257524,1737742240876,-500.0,0.00019845,2]
[350257525,1737742240885,-500.0,0.00019845,2]
[350257526,1737742240895,-525.42,0.00019845,2]
[350257527,1737742240905,-500.0,0.00019845,2]
[350257528,1737742240914,-500.0,0.00019845,2]
[350257529,1737742240924,-500.0,0.00019846,2]
[350257530,1737742240936,-500.0,0.00019846,2]
[350257531,1737742240945,-500.0,0.00019846,2]
[350257532,1737742240954,-500.0,0.00019846,2]
[350257533,1737742240965,-500.0,0.00019846,2]
[350257534,1737742240975,-500.0,0.00019846,2]
[350257535,1737742240984,-500.0,0.00019846,2]
[350257536,1737742240994,-500.0,0.00019846,2]
[350257537,1737742241003,-500.0,0.00019846,2]
[350257538,1737742241015,-500.0,0.00019846,2]
[350257539,1737742241025,-500.0,0.00019846,2]
[350257540,1737742241034,-500.0,0.00019846,2]
[350257541,1737742241044,-500.0,0.00019846,2]
[350257542,1737742241053,-500.0,0.00019846,2]
[350257543,1737742241063,-367.79260316,0.00019846,2]
[350257544,1737742241073,-500.0,0.00019846,2]
[350257545,1737742241082,-500.0,0.00019846,2]
[350257546,1737742241092,-500.0,0.00019846,2]
[350257547,1737742241101,-500.0,0.00019846,2]
[350257548,1737742241111,-500.0,0.00019846,2]
[350257549,1737742241120,-500.0,0.00019846,2]
[350257550,1737742241130,-553.88725994,0.00019846,2]
[350257551,1737742241139,-500.0,0.00019846,2]
[350257552,1737742241149,-500.0,0.00019846,2]
[350257553,1737742241159,-500.0,0.00019846,2]
[350257554,1737742241170,-500.0,0.00019846,2]
[350257555,1737742241181,-500.0,0.00019846,2]
[350257556,1737742241191,-500.0,0.00019846,2]
[350257557,1737742241200,-500.0,0.00019846,2]
[350257558,1737742241210,-500.0,0.00019846,2]
[350257559,1737742241219,-500.0,0.00019846,2]
[350257560,1737742241229,-669.3,0.00019846,2]
[350257561,1737742241239,-500.0,0.00019846,2]
[350257562,1737742241248,-500.0,0.00019846,2]
[350257563,1737742241262,-251.17215012,0.00019846,2]
[350257564,1737742241272,-1073.48,0.00019846,2]
[350257565,1737742241281,-500.0,0.00019846,2]
[350257566,1737742241290,-564.3,0.00019846,2]
[350257567,1737742241299,-500.0,0.00019846,2]
[350257568,1737742241308,-500.0,0.00019846,2]
[350257569,1737742241318,-500.0,0.00019846,2]
[350257570,1737742241328,-500.0,0.00019846,2]
[350257571,1737742241337,-500.0,0.00019846,2]
[350257572,1737742241347,-500.0,0.00019846,2]
[350257573,1737742241356,-750.73,0.00019846,2]
[350257574,1737742241366,-500.0,0.00019846,2]
[350257575,1737742241375,-500.0,0.00019846,2]
[350257576,1737742241384,-1323.61,0.00019846,2]
[350257577,1737742241394,-500.0,0.00019846,2]
[350257578,1737742241403,-506.42,0.00019846,2]
[350257579,1737742241413,-500.0,0.00019846,2]
[350257580,1737742241422,-500.0,0.00019846,2]
[350257581,1737742241432,-500.0,0.00019846,2]
[350257582,1737742241442,-1648.25,0.00019846,2]
[350257583,1737742241451,-500.0,0.00019846,2]
[350257584,1737742241461,-500.0,0.00019846,2]
[350257585,1737742241471,-500.0,0.00019846,2]
[350257586,1737742241481,-500.0,0.00019846,2]
[350257587,1737742241490,-648.84745267,0.00019846,2]
[350257588,1737742241499,-500.0,0.00019846,2]
[350257589,1737742241508,-500.0,0.00019846,2]
[350257590,1737742241521,-500.0,0.00019846,2]
[350257591,1737742241530,-594.31,0.00019846,2]
[350257592,1737742241540,-500.0,0.00019846,2]
[350257593,1737742241550,-500.0,0.00019846,2]
[350257594,1737742241559,-500.0,0.00019846,2]
[350257595,1737742241570,-734.66,0.00019846,2]
[350257596,1737742241580,-1874.94,0.00019846,2]
[350257597,1737742241589,-500.0,0.00019846,2]
[350257598,1737742241599,-500.0,0.00019846,2]
[350257599,1737742241609,-500.0,0.00019846,2]
[350257600,1737742241618,-500.0,0.00019846,2]
[350257601,1737742241628,-500.0,0.00019846,2]
[350257602,1737742241637,-352.58137843,0.00019846,2]
[350257603,1737742241646,-150.0,0.00019855,2]
[350257604,1737742241657,-825.38999958,0.00019859,2]
[350257605,1737742241667,-500.0,0.00019864,2]
[350257606,1737742241676,-500.0,0.00019864,2]
[350257607,1737742241685,-500.0,0.00019864,2]
[350257608,1737742241695,-447.78,0.00019864,2]
[350257609,1737742241704,-500.0,0.00019864,2]
[350257610,1737742241714,-500.0,0.00019864,2]
[350257611,1737742241723,-500.0,0.00019864,2]
[350257612,1737742241732,-500.0,0.00019864,2]
[350257613,1737742241741,-496.06,0.00019864,2]
[350257614,1737742241750,-500.0,0.00019864,2]
[350257615,1737742241760,-505.23,0.00019864,2]
[350257616,1737742241771,-500.0,0.00019864,2]
[350257617,1737742241780,-500.0,0.00019864,2]
[350257618,1737742241790,-355.79220688,0.00019864,2]
[350257619,1737742241801,-500.0,0.00019864,2]
[350257620,1737742241810,-540.70731697,0.00019864,2]
[350257621,1737742241820,-500.0,0.00019864,2]
[350257622,1737742241829,-500.0,0.00019873,2]
[350257623,1737742241839,-500.0,0.00019873,2]
[350257624,1737742241849,-500.0,0.00019873,2]
[350257625,1737742241858,-519.35,0.00019873,2]
[350257626,1737742241867,-500.0,0.00019873,2]
[350257627,1737742241877,-500.0,0.00019873,2]
[350257628,1737742241886,-500.0,0.00019873,2]
[350257629,1737742241895,-842.06,0.00019873,2]
[350257630,1737742241905,-500.0,0.00019873,2]
[350257631,1737742241914,-150.0,0.00019887,2]
[350257632,1737742241923,-16172.0911,0.000199,2]
[350257633,1737742241934,-1000.0,0.000199,2]
[350257634,1737742241943,-283.07706301,0.000199,2]
[350257635,1737742241955,-1000.0,0.000199,2]
[350257636,1737742241964,-1000.0,0.000199,2]
[350257637,1737742241974,-1000.0,0.000199,2]
[350257638,1737742241985,-1000.0,0.000199,2]
[350257639,1737742241995,-1000.0,0.000199,2]
[350257640,1737742242005,-1000.0,0.000199,2]
[350257641,1737742242014,-1000.0,0.000199,2]
[350257642,1737742242024,-1000.0,0.000199,2]
[350257643,1737742242033,-1000.0,0.000199,2]
[350257644,1737742242042,-1000.0,0.000199,2]
[350257645,1737742242052,-1015.045,0.000199,2]
[350257646,1737742242061,-235.75615418,0.000199,2]
[350257647,1737742242071,-317.88136706,0.000199,2]
[350257648,1737742242081,-186.25934196,0.000199,2]
[350257649,1737742242090,-1348.61250022,0.000199,2]
[350257650,1737742242099,-1119.34054529,0.00019909,2]
[350257651,1737742242108,-500.0,0.00019946,2]
[350257652,1737742242118,-1348.6125001,0.00019969,2]
[350257653,1737742242127,-551.446764,0.00019982,2]
[350257654,1737742242136,-500.0,0.00019982,2]
[350257655,1737742242146,-323.877966,0.00019982,2]
[350257656,1737742242156,-500.0,0.00019982,2]
[350257657,1737742242165,-500.0,0.00019982,2]
[350257658,1737742242179,-510.62,0.00019982,2]
[350257659,1737742242188,-500.0,0.00019982,2]
[350257660,1737742242197,-500.0,0.00019982,2]
[350257661,1737742242207,-593.21,0.00019982,2]
[350257662,1737742242217,-500.0,0.00019982,2]
[350257663,1737742242226,-715.52,0.00019982,2]
[350257664,1737742242235,-500.0,0.00019982,2]
[350257665,1737742242245,-1100.14,0.00019982,2]
[350257666,1737742242255,-815.3,0.00019982,2]
[350257667,1737742242265,-1804.26,0.00019982,2]
[350257668,1737742242274,-500.0,0.00019982,2]
[350257669,1737742242284,-500.0,0.00019982,2]
[350257670,1737742242294,-500.0,0.00019982,2]
[350257671,1737742242303,-500.0,0.00019982,2]
[350257672,1737742242313,-500.0,0.00019982,2]
[350257673,1737742242322,-500.0,0.00019982,2]
[350257674,1737742242332,-933.88,0.00019982,2]
[350257675,1737742242341,-537.82,0.00019982,2]
[350257676,1737742242352,-500.0,0.00019982,2]
[350257677,1737742242363,-879.83,0.00019982,2]
[350257678,1737742242372,-500.0,0.00019982,2]
[350257679,1737742242381,-500.0,0.00019982,2]
[350257680,1737742242390,-500.0,0.00019982,2]
[350257681,1737742242400,-500.0,0.00019982,2]
[350257682,1737742242411,-500.0,0.00019982,2]
[350257683,1737742242420,-599.9,0.00019982,2]
[350257684,1737742242430,-813.69,0.00019982,2]
[350257685,1737742242439,-500.0,0.00019982,2]
[350257686,1737742242448,-1090.78,0.00019982,2]
[350257687,1737742242458,-500.0,0.00019982,2]
[350257688,1737742242468,-500.0,0.00019982,2]
[350257689,1737742242478,-500.0,0.00019982,2]
[350257690,1737742242490,-162.87,0.00019982,2]
[350257691,1737742242501,-598.67,0.00019982,2]
[350257692,1737742242511,-500.0,0.00019982,2]
[350257693,1737742242522,-432.48,0.00019982,2]
[350257694,1737742242531,-500.0,0.00019982,2]
[350257695,1737742242542,-500.0,0.00019982,2]
[350257696,1737742242555,-540.92,0.00019982,2]
[350257697,1737742242564,-500.0,0.00019982,2]
[350257698,1737742242575,-500.0,0.00019982,2]
[350257699,1737742242585,-525.42,0.00019982,2]
[350257700,1737742242595,-500.0,0.00019982,2]
[350257701,1737742242604,-500.0,0.00019982,2]
[350257702,1737742242614,-500.0,0.00019983,2]
[350257703,1737742242623,-500.0,0.00019983,2]
[350257705,1737742242634,-500.0,0.00019983,2]
[350257707,1737742242643,-500.0,0.00019983,2]
[350257708,1737742242654,-500.0,0.00019983,2]
[350257709,1737742242663,-500.0,0.00019983,2]
[350257711,1737742242673,-500.0,0.00019983,2]
[350257713,1737742242682,-500.0,0.00019983,2]
[350257715,1737742242692,-500.0,0.00019983,2]
[350257716,1737742242702,-500.0,0.00019983,2]
[350257717,1737742242711,-560.45211939,0.00019983,2]
[350257718,1737742242730,-61.50029701,0.00019983,2]
[350257719,1737742242739,-500.0,0.00019983,2]
[350257720,1737742242749,-500.0,0.00019983,2]
[350257721,1737742242758,-21.2764838,0.00019983,2]
[350257723,1737742242936,-500.0,0.00019572,2]
[350257724,1737742242945,-164.41871925,0.00019983,2]
[350257725,1737742243048,-359.21293366,0.00019572,2]
[350257726,1737742243058,-500.0,0.00019572,2]
[350257727,1737742243067,-500.0,0.00019709,2]
[350257728,1737742243076,-500.0,0.00019846,2]
[350257729,1737742243086,-314.30479695,0.00019983,2]
[350257730,1737742243095,-500.0,0.00019983,2]
[350257731,1737742243105,-500.0,0.00019983,2]
[350257732,1737742243114,-500.0,0.00019983,2]
[350257733,1737742243124,-223.82252427,0.00019983,2]
[350257734,1737742243133,-500.0,0.00019983,2]
[350257735,1737742243142,-557.05091335,0.00019983,2]
[350257736,1737742243152,-302.24187594,0.00019983,2]
[350257737,1737742243164,-197.75812406,0.00019983,2]
[350257738,1737742243174,-500.0,0.00019983,2]
[350257739,1737742243187,-500.0,0.00019983,2]
[350257740,1737742243196,-500.0,0.00019983,2]
[350257741,1737742243205,-500.0,0.00019983,2]
[350257742,1737742243216,-500.0,0.00019983,2]
[350257743,1737742243226,-500.0,0.00019983,2]
[350257744,1737742243235,-500.0,0.00019983,2]
[350257745,1737742243244,-500.0,0.00019983,2]
[350257746,1737742243255,-1073.48,0.00019983,2]
[350257747,1737742243265,-500.0,0.00019983,2]
[350257748,1737742243275,-564.3,0.00019983,2]
[350257749,1737742243284,-500.0,0.00019983,2]
[350257750,1737742243294,-500.0,0.00019983,2]
[350257751,1737742243305,-500.0,0.00019983,2]
[350257752,1737742243314,-500.0,0.00019983,2]
[350257753,1737742243324,-500.0,0.00019983,2]
[350257754,1737742243334,-500.0,0.00019983,2]
[350257755,1737742243343,-750.73,0.00019983,2]
[350257757,1737742243352,-500.0,0.00019983,2]
[350257759,1737742243362,-464.37883177,0.00019983,2]
[350257761,1737742243374,-35.62116823,0.00019983,2]
[350257763,1737742243383,-1323.61,0.00019983,2]
[350257765,1737742243393,-500.0,0.00019983,2]
[350257766,1737742243402,-506.42,0.00019983,2]
[350257767,1737742243411,-500.0,0.00019983,2]
[350257768,1737742243421,-500.0,0.00019983,2]
[350257769,1737742243430,-500.0,0.00019983,2]
[350257770,1737742243439,-1648.25,0.00019983,2]
[350257771,1737742243449,-500.0,0.00019983,2]
[350257772,1737742243458,-500.0,0.00019983,2]
[350257773,1737742243468,-500.0,0.00019983,2]
[350257774,1737742243477,-500.0,0.00019983,2]
[350257775,1737742243488,-506.15455223,0.00019983,2]
[350257776,1737742243497,-500.0,0.00019983,2]
[350257777,1737742243507,-594.31,0.00019983,2]
[350257779,1737742243517,-500.0,0.00019983,2]
[350257780,1737742243527,-500.0,0.00019983,2]
[350257781,1737742243536,-175.11855898,0.00019983,2]
[350257782,1737742243545,-734.66,0.00019983,2]
[350257783,1737742243555,-1874.94,0.00019983,2]
[350257784,1737742243564,-493.35738723,0.00019983,2]
[350257785,1737742243587,-6.64261277,0.00019983,2]
[350257786,1737742243596,-500.0,0.00019983,2]
[350257787,1737742243606,-500.0,0.00019983,2]
[350257788,1737742243616,-500.0,0.00019983,2]
[350257789,1737742243772,-533.0,0.00019996,2]
[350257790,1737742243782,-165.0039658,0.00019996,2]
[350257791,1737742243792,-183.7510243,0.00019996,2]
[350257792,1737742243802,-370.83281131,0.00019999,2]
[350257793,1737742243811,-1000.0,0.00019999,2]